bitfinex-derivatives/quotes_ETHF0:USTF0_20250330
["timestamp","ask_amount","ask_price","bid_price","bid_amount"]
[1743353023534,3.2078,1805.5,1805.4,0.00831025]
[1743353023736,3.2078,1805.5,1805.4,1.11640025]
[1743353023932,3.2078,1805.5,1805.4,0.00831025]
[1743353024242,3.2078,1805.5,1805.4,1.11640025]
[1743353024427,4.31583,1805.5,1805.4,0.00831025]
[1743353024630,3.2078,1805.5,1805.4,1.11640025]
[1743353025028,3.2078,1805.5,1805.4,0.00831025]
[1743353025534,3.2078,1805.5,1805.4,1.11640025]
[1743353025933,4.32406025,1805.7,1805.5,1.10802]
[1743353026137,3.21611025,1805.7,1805.5,3.0039]
[1743353026338,2.9342,1805.6,1805.5,4.11193]
[1743353026936,2.9342,1805.6,1805.5,6.95803]
[1743353027737,0.00831025,1805.7,1805.6,1.10797]
[1743353027937,0.00831025,1805.7,1805.6,4.15437]
[1743353031051,0.00831025,1805.7,1805.6,14.52823854]
[1743353032537,0.00831025,1805.7,1805.6,17.02823854]
[1743353034040,0.00831025,1805.7,1805.6,17.44497212]
[1743353034348,0.00831025,1805.7,1805.6,14.94497212]
[1743353034650,0.00831025,1805.7,1805.6,7.36217]
[1743353034842,0.00831025,1805.7,1805.6,11.18217]
[1743353036147,0.00831025,1805.7,1805.6,11.73657]
[1743353037950,0.00831025,1805.7,1805.6,7.91657]
[1743353038249,0.00831025,1805.7,1805.6,11.73057]
[1743353040154,0.00831025,1805.7,1805.6,8.68417]
[1743353040457,6.14591025,1805.7,1805.6,8.12977]
[1743353041060,6.14591025,1805.7,1805.6,4.31577]
[1743353041357,9.10181025,1805.7,1805.6,4.31577]
[1743353041758,9.10181025,1805.7,1805.6,1.10797]
[1743353042058,1.108,1805.6,1805.4,0.00831025]
[1743353042364,7.27171,1805.6,1805.4,1.11640025]
[1743353042758,2.8177,1805.5,1805.4,1.11640025]
[1743353042958,3.92573,1805.5,1805.4,0.00831025]
[1743353044259,2.8177,1805.5,1805.4,1.11640025]
[1743353045255,9.784,1805.9,1805.4,1.11640025]
[1743353045256,21.21357163,1806.4,1805.8,2.76959]
[1743353045460,2.8177,1806.3,1806.2,4.3154]
[1743353045655,2.8177,1806.3,1806.2,1.1076]
[1743353046058,2.8177,1806.3,1806.1,4.04632]
[1743353046258,2.82593253,1806.3,1806.2,1.1076]
[1743353046459,2.82593253,1806.3,1806.2,4.0463]
[1743353047863,2.82593253,1806.3,1806.2,7.8633]
[1743353048054,2.82593253,1806.3,1806.2,6.7557]
[1743353048466,2.82593253,1806.3,1806.2,7.8633]
[1743353052664,2.82593253,1806.3,1806.2,11.0711]
[1743353052866,0.00823253,1806.3,1806.2,11.6255]
[1743353053662,0.00823253,1806.3,1806.2,18.66053538]
[1743353059763,0.00823253,1806.3,1806.2,14.84353538]
[1743353059965,0.00823253,1806.3,1806.2,18.65653538]
[1743353061966,0.00823253,1806.3,1806.2,14.84353538]
[1743353062165,0.00823253,1806.3,1806.2,11.6215]
[1743353062973,0.00823253,1806.3,1806.2,4.8698]
[1743353063175,0.00823253,1806.3,1806.2,8.6828]
[1743353063772,2.83203253,1806.3,1806.2,8.6828]
[1743353063974,5.85983253,1806.3,1806.2,8.6828]
[1743353064370,17.09882253,1806.3,1805.6,0.5544]
[1743353064573,17.09882253,1806.3,1805.4,1.11637025]
[1743353064574,3.2078,1805.7,1805.4,1.11637025]
[1743353064775,2.8573,1805.6,1805.4,0.00831025]
[1743353065077,7.0208,1805.5,1804.9,1.10838]
[1743353065273,4.31596,1805.3,1804.9,1.10838]
[1743353065478,2.8573,1805.2,1804.9,1.10838]
[1743353065678,2.8573,1805.2,1805.0,1.10832]
[1743353065973,2.8573,1805.2,1804.9,1.10836]
[1743353066170,2.8573,1805.2,1804.9,1.11667025]
[1743353066370,3.96552,1805.2,1804.9,2.88831025]
[1743353066570,2.8573,1805.2,1804.9,0.00831025]
[1743353066776,2.8573,1805.2,1804.9,1.11671025]
[1743353067172,7.77854,1805.2,1804.9,0.00831025]
[1743353067576,1.10829,1805.1,1804.9,0.00831025]
[1743353067776,2.882,1805.0,1804.9,0.00831025]
[1743353068581,3.99034,1805.0,1804.9,0.00831025]
[1743353070270,6.49034,1805.0,1804.9,0.00831025]
[1743353070670,3.99034,1805.0,1804.9,0.00831025]
[1743353074182,3.99034,1805.0,1804.5,2.8297]
[1743353074183,1.10854,1804.7,1804.5,3.93834]
[1743353074485,2.937,1804.6,1804.5,3.93834]
[1743353075284,2.937,1804.6,1804.5,2.8297]
[1743353075676,4.04558,1804.6,1804.5,2.8297]
[1743353075874,4.04558,1804.6,1804.4,6.72901025]
[1743353075875,1.10865,1804.5,1804.4,0.00831025]
[1743353076079,4.10925,1804.5,1804.4,0.00831025]
[1743353076480,7.14745,1804.5,1804.4,0.00831025]
[1743353076979,1.10865,1804.5,1804.4,0.00831025]
[1743353077184,1.10862,1804.6,1804.4,0.00831025]
[1743353077480,3.0006,1804.5,1804.4,0.00831025]
[1743353077685,3.0006,1804.5,1804.4,2.95041025]
[1743353079483,3.0006,1804.5,1804.4,4.05912025]
[1743353079682,3.0382,1804.7,1804.5,1.10862]
[1743353079979,3.0382,1804.7,1804.6,2.9936]
[1743353080887,2.97,1804.7,1804.6,4.10218]
[1743353081288,2.97,1804.7,1804.6,2.9936]
[1743353081596,2.97,1804.7,1804.6,4.10218]
[1743353082587,6.2916,1805.0,1804.8,1.10841]
[1743353082789,6.2916,1805.0,1804.9,2.8238]
[1743353083088,6.2916,1805.0,1804.9,3.9322]
[1743353083684,3.0838,1805.0,1804.9,3.9322]
[1743353083883,6.0581,1805.0,1804.9,2.8238]
[1743353084686,6.0581,1805.0,1804.9,3.9322]
[1743353085493,6.0581,1805.0,1804.9,2.8238]
[1743353085790,1.10845,1804.9,1804.7,1.10848]
[1743353085990,6.0581,1805.0,1804.7,3.99248]
[1743353085991,2.82,1804.8,1804.7,3.99248]
[1743353086587,2.82,1804.8,1804.7,1.10848]
[1743353086791,2.82,1804.8,1804.7,1.10852]
[1743353093396,6.2916,1805.0,1804.8,1.10843]
[1743353093601,2.9978,1804.9,1804.8,1.10843]
[1743353093987,3.2078,1805.2,1804.7,5.97904]
[1743353094187,3.2078,1805.2,1805.0,1.10832]
[1743353094398,4.31602,1805.2,1805.0,1.10832]
[1743353094891,4.31602,1805.2,1804.9,1.10835]
[1743353095195,2.8244,1805.1,1805.0,1.10834]
[1743353095695,4.31602,1805.2,1805.0,1.10834]
[1743353095900,0.00831025,1805.3,1805.2,1.10822]
[1743353096196,29.34407163,1806.1,1805.8,1.10782]
[1743353096398,2.8244,1806.0,1805.8,1.10782]
[1743353097299,21.22188188,1806.1,1806.0,1.10772]
[1743353097699,0.00831025,1806.1,1806.0,1.10772]
[1743353098899,0.00831025,1806.1,1805.9,1.10778]
[1743353099094,3.21611025,1806.1,1805.9,1.10778]
[1743353099289,1.1078,1805.9,1805.7,0.00831025]
[1743353099500,2.8411,1805.8,1805.7,0.00831025]
[1743353099696,0.00831025,1806.1,1805.7,0.00831025]
[1743353099992,2.84941025,1806.1,1806.0,1.10772]
[1743353100192,2.84941025,1806.1,1805.7,3.21611025]
[1743353100193,2.84941025,1806.1,1805.8,1.10779]
[1743353100394,1.10775,1806.0,1805.7,1.11618025]
[1743353100593,2.8163,1805.9,1805.8,1.10785]
[1743353100795,2.8163,1805.9,1805.7,1.11616025]
[1743353101000,2.8163,1805.9,1805.7,0.00831025]
[1743353101199,2.8163,1805.9,1805.8,1.10785]
[1743353102098,7.13191,1805.9,1805.7,0.00831025]
[1743353102405,2.8126,1805.8,1805.7,1.11622025]
[1743353102596,5.6289,1805.8,1805.7,1.11622025]
[1743353102798,5.6289,1805.8,1805.7,0.00831025]
[1743353103695,6.73675,1805.8,1805.7,0.00831025]
[1743353105201,5.6289,1805.8,1805.7,0.00831025]
[1743353105399,0.00831025,1806.1,1805.7,0.00831025]
[1743353105601,0.00831025,1806.1,1806.0,1.10772]
[1743353105904,2.96981025,1806.1,1806.0,1.10772]
[1743353107103,4.07749025,1806.1,1805.9,1.10777]
[1743353107602,2.9486,1806.0,1805.8,3.91491]
[1743353107803,2.9486,1806.0,1805.7,6.06391025]
[1743353108004,2.9486,1806.0,1805.9,1.10779]
[1743353109096,4.05635,1806.0,1805.8,2.8071]
[1743353109298,3.1031,1805.9,1805.8,2.8071]
[1743353109603,5.9138,1805.9,1805.8,2.8071]
[1743353110005,5.9138,1805.9,1805.8,3.91495]
[1743353111108,5.9138,1805.9,1805.8,2.8071]
[1743353111407,7.02163,1805.9,1805.7,1.11620025]
[1743353111609,2.8107,1805.8,1805.7,2.90551025]
[1743353112408,2.8107,1805.8,1805.7,4.01342025]
[1743353112808,2.8107,1805.8,1805.7,2.90551025]
[1743353113412,2.8107,1805.8,1805.7,4.01342025]
[1743353114504,3.91855,1805.8,1805.7,2.90551025]
[1743353114712,3.91855,1805.8,1805.7,0.00831025]
[1743353115511,2.8107,1805.8,1805.7,0.00831025]
[1743353115709,3.91855,1805.8,1805.7,0.00831025]
[1743353116212,7.12635,1805.8,1805.7,0.00831025]
[1743353118108,2.8107,1805.8,1805.7,1.11622025]
[1743353118315,3.2078,1806.0,1805.9,1.10779]
[1743353119015,6.2184,1806.0,1805.9,1.10779]
[1743353119214,6.2184,1806.0,1805.9,4.06049]
[1743353119716,6.2184,1806.0,1805.7,0.00831025]
[1743353119918,1.10785,1805.8,1805.7,0.00831025]
[1743353120313,7.32625,1805.8,1805.7,0.00831025]
[1743353121015,6.2184,1805.8,1805.7,1.11622025]
[1743353121719,6.2184,1805.8,1805.7,0.00831025]
[1743353122218,7.32625,1805.8,1805.7,0.00831025]
[1743353126021,7.32625,1805.8,1805.7,2.82961025]
[1743353126421,6.2184,1805.8,1805.7,3.93752025]
[1743353126717,4.11845,1805.8,1805.7,2.82961025]
[1743353126915,3.0106,1805.8,1805.7,3.93752025]
[1743353127217,3.0106,1805.8,1805.7,2.82961025]
[1743353127218,4.11845,1805.8,1805.7,2.82961025]
[1743353127418,3.0106,1805.8,1805.7,3.93752025]
[1743353127820,3.2078,1806.0,1805.9,1.10779]
[1743353128015,7.23804,1806.0,1805.8,9.65651]
[1743353128325,7.23804,1806.0,1805.9,2.828]
[1743353128509,4.31554,1806.0,1805.9,2.828]
[1743353129116,1.10785,1805.8,1805.7,0.00831025]
[1743353129317,4.13693,1805.9,1805.7,0.00831025]
[1743353129715,4.13693,1805.9,1805.7,1.11617025]
[1743353131023,3.0291,1805.9,1805.8,1.10785]
[1743353131324,4.31553,1806.0,1805.8,4.13695]
[1743353131523,4.31553,1806.0,1805.8,4.1369]
[1743353131719,4.31553,1806.0,1805.9,4.13689]
[1743353132223,0.00831025,1806.1,1805.9,3.0291]
[1743353132524,0.00831025,1806.1,1806.0,7.17662]
[1743353133624,0.00831025,1806.1,1806.0,3.0291]
[1743353133625,1.11597025,1806.1,1806.0,3.0291]
[1743353134121,1.10772,1806.0,1805.9,1.10778]
[1743353134317,1.11602025,1806.1,1805.9,4.14298]
[1743353135219,1.11602025,1806.1,1806.0,3.0352]
[1743353135924,0.00831025,1806.1,1806.0,4.14292]
[1743353138020,0.00831025,1806.1,1806.0,15.01880545]
[1743353139116,0.00831025,1806.1,1806.0,7.95492]
[1743353139918,0.00831025,1806.1,1806.0,15.20065745]
[1743353142124,21.21357163,1806.5,1806.4,1.10748]
[1743353144731,21.21357163,1806.5,1806.4,3.95268]
[1743353145430,21.21357163,1806.5,1806.4,6.87638]
[1743353145739,0.00823253,1806.6,1806.5,1.10742]
[1743353145932,0.00823253,1806.6,1806.5,4.14612]
[1743353146937,0.00823253,1806.6,1806.5,11.46667576]
[1743353147329,0.00823253,1806.6,1806.5,14.67447576]
[1743353148132,21.21357163,1806.8,1806.7,1.1073]
[1743353148434,21.20526138,1806.8,1806.7,8.1261]
[1743353148635,21.20526138,1806.8,1806.7,15.16262491]
[1743353148823,21.20526138,1806.8,1806.7,18.20132491]
[1743353149640,3.0834,1807.1,1807.0,1.10711]
[1743353149929,3.0834,1807.1,1806.7,18.20132491]
[1743353149930,3.0834,1807.1,1806.9,1.10715]
[1743353150137,3.0834,1807.1,1807.0,2.8241]
[1743353150337,3.0834,1807.1,1807.0,3.93121]
[1743353154737,4.19048,1807.1,1806.9,1.11546025]
[1743353155036,4.31491,1807.0,1806.9,0.00831025]
[1743353155240,10.26691,1807.0,1806.9,0.00831025]
[1743353156836,1.10731,1806.7,1806.5,4.86877]
[1743353157032,9.1598,1807.0,1806.5,3.2078]
[1743353157033,3.0794,1806.9,1806.5,3.2078]
[1743353157235,2.8726,1806.6,1806.5,4.31522]
[1743353157743,5.952,1806.6,1806.5,4.31522]
[1743353157937,5.952,1806.6,1806.5,4.86882]
[1743353158240,3.0794,1806.6,1806.5,4.31522]
[1743353158946,3.0794,1806.6,1806.5,7.30712]
[1743353159237,3.0794,1806.6,1806.5,4.31522]
[1743353159833,3.0794,1806.6,1806.5,3.7614]
[1743353160035,6.1579,1806.6,1806.5,3.2078]
[1743353160437,7.26526,1806.6,1806.5,3.2078]
[1743353160638,6.1579,1806.6,1806.5,3.2078]
[1743353160838,7.26526,1806.6,1806.5,3.2078]
[1743353161240,1.10742,1806.5,1806.4,0.00831025]
[1743353161445,7.02242,1806.5,1806.4,0.00831025]
[1743353165733,5.915,1806.5,1806.4,0.00831025]
[1743353165940,5.915,1806.5,1806.4,1.11579025]
[1743353165941,2.9954,1806.5,1806.4,1.11579025]
[1743353166445,0.00831025,1806.7,1806.6,1.10736]
[1743353166646,2.95641025,1806.7,1806.6,1.10736]
[1743353168350,6.16421025,1806.7,1806.4,0.00831025]
[1743353168552,1.10742,1806.5,1806.4,0.00831025]
[1743353169251,2.898,1806.6,1806.5,1.10742]
[1743353169445,2.898,1806.6,1806.5,3.99732]
[1743353173554,2.898,1806.6,1806.5,2.8899]
[1743353173757,1.10742,1806.5,1806.4,0.00831025]
[1743353174051,2.898,1806.6,1806.4,1.11578025]
[1743353174252,2.898,1806.6,1806.5,1.10742]
[1743353175554,2.898,1806.6,1806.4,4.12545025]
[1743353175746,4.00536,1806.6,1806.4,4.12545025]
[1743353175952,1.10742,1806.5,1806.4,3.57161025]
[1743353176155,3.0432,1806.5,1806.4,3.57161025]
[1743353176356,3.0432,1806.5,1806.4,4.67909025]
[1743353176557,3.0432,1806.5,1806.4,3.57161025]
[1743353176759,3.0432,1806.5,1806.4,4.67909025]
[1743353180261,4.32343025,1806.7,1806.5,1.10737]
[1743353180560,3.0261,1806.6,1806.5,1.10737]
[1743353180965,4.13348,1806.6,1806.4,1.66935025]
[1743353181154,1.10742,1806.5,1806.4,0.56191025]
[1743353181352,1.10756,1806.3,1806.1,1.10764]
[1743353181558,3.0261,1806.2,1806.1,1.10764]
[1743353181760,4.13371,1806.2,1805.9,12.851]
[1743353181959,7.34154,1806.2,1805.9,10.75095]
[1743353182159,3.0261,1806.1,1805.9,11.30535]
[1743353182356,3.0261,1806.1,1805.9,10.75095]
[1743353182555,3.0261,1806.1,1805.8,1.11614025]
[1743353182764,6.0784,1806.0,1805.9,1.10779]
[1743353183261,5.8988,1806.0,1805.9,1.10779]
[1743353184957,2.8812,1806.0,1805.9,1.10779]
[1743353185361,3.2078,1806.4,1806.2,1.1076]
[1743353185577,3.0914,1806.3,1806.1,1.10763]
[1743353186064,4.19897,1806.3,1806.0,10.61879]
[1743353186266,1.10766,1806.1,1805.8,1.11612025]
[1743353186459,3.0914,1806.0,1805.8,3.99282025]
[1743353187468,1.10779,1805.9,1805.8,0.00831025]
[1743353187872,7.40696,1806.0,1805.8,0.00831025]
[1743353188065,3.0914,1805.9,1805.8,1.11616025]
[1743353188566,4.19919,1805.9,1805.8,0.00831025]
[1743353188762,3.0914,1805.9,1805.8,0.00831025]
[1743353188963,3.0914,1805.9,1805.8,1.11616025]
[1743353189567,3.0914,1805.9,1805.8,0.00831025]
[1743353189964,4.19919,1805.9,1805.8,0.00831025]
[1743353192066,8.36091,1805.9,1805.3,3.7622]
[1743353192369,1.10806,1805.5,1805.3,3.2078]
[1743353192565,6.0179,1805.4,1805.3,3.2078]
[1743353192965,10.33379,1805.4,1805.2,0.5544]
[1743353193174,3.0536,1805.3,1805.2,1.11653025]
[1743353193671,3.0536,1805.3,1805.2,0.00831025]
[1743353196674,4.16175,1805.3,1805.2,0.00831025]
[1743353197670,3.0536,1805.3,1805.2,0.00831025]
[1743353198974,3.0536,1805.3,1805.2,1.11653025]
[1743353199175,2.9643,1805.4,1805.3,1.10815]
[1743353199374,7.1725,1805.4,1805.2,4.16280025]
[1743353199564,7.17253,1805.4,1805.2,3.05461025]
[1743353199765,3.1001,1805.3,1805.2,3.05461025]
[1743353200276,3.1001,1805.3,1805.2,4.16283025]
[1743353202172,3.1001,1805.3,1805.2,3.05461025]
[1743353202373,3.1001,1805.3,1805.2,4.16283025]
[1743353202573,3.1001,1805.3,1805.2,3.05461025]
[1743353203172,3.1001,1805.3,1805.2,4.16283025]
[1743353205175,3.1001,1805.3,1805.2,3.05461025]
[1743353205977,4.07243,1805.4,1805.2,3.05461025]
[1743353206185,5.8568,1805.4,1805.2,3.05461025]
[1743353206377,2.8925,1805.3,1805.2,4.16278025]
[1743353207183,4.00065,1805.3,1805.2,0.00831025]
[1743353207381,7.08925,1805.3,1805.2,0.00831025]
[1743353209786,8.4811,1805.3,1804.8,51.163]
[1743353209992,6.2194,1805.2,1804.7,3.2078]
[1743353210288,1.1085,1804.8,1804.4,2.9408]
[1743353210594,5.9461,1804.7,1804.4,10.23945904]
[1743353210892,3.0116,1804.6,1804.5,4.0494]
[1743353213095,3.0116,1804.6,1804.5,7.0365]
[1743353214593,3.0116,1804.6,1804.5,5.9279]
[1743353214793,3.0116,1804.6,1804.5,7.03655]
[1743353215895,3.0116,1804.6,1804.5,5.9279]
[1743353216094,3.0116,1804.6,1804.5,7.03655]
[1743353216295,4.12018,1804.6,1804.4,1.11699025]
[1743353216490,1.10865,1804.5,1804.4,0.00831025]
[1743353216691,4.02815,1804.5,1804.4,0.00831025]
[1743353217088,2.9195,1804.5,1804.4,0.00831025]
[1743353217388,4.02815,1804.5,1804.4,0.00831025]
[1743353218185,6.1273,1804.5,1804.0,4.87113]
[1743353218494,1.10884,1804.2,1804.0,6.793]
[1743353218683,1.10884,1804.2,1804.1,3.0308]
[1743353220094,4.20189025,1804.3,1804.1,4.13966]
[1743353220395,1.10883,1804.2,1804.1,3.0308]
[1743353220595,1.10883,1804.2,1804.0,1.11723025]
[1743353220797,1.10883,1804.2,1804.0,3.95143025]
[1743353221289,4.31669,1804.1,1804.0,0.00831025]
[1743353222195,1.10908,1803.8,1803.7,3.2078]
[1743353222385,2.9862,1804.0,1803.7,6.0729]
[1743353222588,2.9966,1803.9,1803.7,6.0729]
[1743353222783,2.9966,1803.9,1803.8,1.10908]
[1743353223092,2.9966,1803.9,1803.8,2.8651]
[1743353223093,4.10561,1803.9,1803.8,2.8651]
[1743353223884,3.2078,1804.1,1803.8,2.8651]
[1743353224090,4.10546,1804.2,1803.9,1.10901]
[1743353224290,4.10546,1804.2,1804.0,3.97403]
[1743353224488,4.10546,1804.2,1804.1,2.8651]
[1743353224990,2.9966,1804.2,1804.1,2.8651]
[1743353225197,4.32491025,1804.3,1804.1,3.97399]
[1743353225590,4.32491025,1804.3,1804.0,2.9541]
[1743353225591,3.21611025,1804.3,1804.2,4.00793]
[1743353226492,0.00831025,1804.3,1804.2,4.00793]
[1743353226991,3.2078,1804.7,1804.5,1.10864]
[1743353227195,4.31632,1804.7,1804.6,5.8857]
[1743353227395,1.10852,1804.7,1804.6,5.8857]
[1743353227595,1.10851,1804.8,1804.6,5.8857]
[1743353227795,3.93512,1804.9,1804.6,6.99428]
[1743353228000,2.8267,1804.9,1804.7,2.8991]
[1743353228294,1.10846,1804.8,1804.7,2.8991]
[1743353229194,1.10852,1804.7,1804.6,0.00831025]
[1743353229696,8.1263,1804.8,1804.6,0.00831025]
[1743353229897,1.10852,1804.7,1804.6,0.00831025]
[1743353230689,4.09222,1804.7,1804.6,0.00831025]
[1743353230889,4.31629,1804.8,1804.6,0.00831025]
[1743353231094,1.10852,1804.7,1804.6,0.00831025]
[1743353232100,3.2078,1804.8,1804.6,0.00831025]
[1743353232693,1.10852,1804.7,1804.6,0.00831025]
[1743353234100,4.91752,1804.7,1804.6,0.00831025]
[1743353234301,3.809,1804.7,1804.3,9.1908]
[1743353234598,3.1207,1804.6,1804.3,12.0553]
[1743353234794,1.1086,1804.6,1804.4,3.9732]
[1743353234997,1.1086,1804.6,1804.5,2.8645]
[1743353236297,3.2078,1804.8,1804.5,2.8645]
[1743353236501,3.0002,1804.6,1804.5,3.97315]
[1743353237697,4.31628,1804.8,1804.6,1.10854]
[1743353237898,3.0323,1804.7,1804.6,4.23014]
[1743353238201,4.14082,1804.7,1804.6,4.23014]
[1743353238390,4.14082,1804.7,1804.6,3.1216]
[1743353238902,1.10865,1804.5,1804.4,0.00554016]
[1743353239091,1.10865,1804.5,1804.4,3.12714016]
[1743353239490,4.14095,1804.5,1804.4,3.12714016]
[1743353239700,3.0323,1804.5,1804.4,3.12714016]
[1743353239891,3.0323,1804.5,1804.4,4.23585016]
[1743353240093,3.2078,1804.6,1804.4,3.12714016]
[1743353240299,3.2078,1804.6,1804.5,3.1216]
[1743353240602,7.34868,1804.6,1804.5,3.1216]
[1743353241097,1.10865,1804.5,1804.4,0.00554016]
[1743353241298,4.14455,1804.5,1804.4,0.00554016]
[1743353241493,4.14455,1804.5,1804.4,2.90254016]
[1743353242005,3.0359,1804.5,1804.4,4.01125016]
[1743353246708,3.2078,1804.8,1804.7,1.10852]
[1743353247802,3.2078,1804.8,1804.7,7.28052]
[1743353248702,1.10852,1804.7,1804.6,2.9172]
[1743353248902,4.04812,1804.7,1804.6,2.9172]
[1743353249208,2.9396,1804.7,1804.6,4.02578]
[1743353249910,2.9396,1804.7,1804.6,2.9172]
[1743353250904,2.9396,1804.7,1804.4,1.11421016]
[1743353251105,7.31163,1804.6,1804.4,3.95690016]
[1743353251309,4.10378,1804.6,1804.5,2.8427]
[1743353253107,7.31158,1804.6,1804.5,2.8427]
[1743353253308,4.10378,1804.6,1804.4,1.11424016]
[1743353253502,4.10378,1804.6,1804.4,3.96164016]
[1743353254114,7.31158,1804.6,1804.4,3.96164016]
[1743353254316,8.97449,1804.6,1803.9,3.2078]
[1743353254617,1.10877,1804.3,1804.1,1.10889]
[1743353254815,3.115,1804.2,1804.1,1.10889]
[1743353255112,1.109,1804.0,1803.8,52.87245]
[1743353255309,1.109,1804.0,1803.8,1.10905]
[1743353255711,3.2078,1804.4,1803.9,3.808]
[1743353255904,3.2078,1804.4,1804.3,1.10877]
[1743353257110,3.2078,1804.4,1804.3,3.98557]
[1743353257907,4.31651,1804.4,1804.3,2.8768]
[1743353258112,4.31655,1804.4,1804.1,3.98565]
[1743353258313,1.1088,1804.3,1804.1,3.98565]
[1743353258713,1.1088,1804.3,1804.2,2.8768]
[1743353261320,3.2078,1804.4,1804.2,2.8768]
[1743353261623,4.31656,1804.4,1804.2,2.8768]
[1743353261823,1.10877,1804.3,1804.2,2.8768]
[1743353262713,1.10889,1804.1,1804.0,5.972]
[1743353262919,1.10895,1804.0,1803.9,2.9995]
[1743353263220,4.31673,1804.1,1803.9,4.10851]
[1743353263418,1.10893,1804.1,1803.9,4.10851]
[1743353264515,4.31673,1804.1,1803.9,4.10851]
[1743353265118,1.10889,1804.1,1803.9,4.10851]
[1743353265316,1.10895,1804.0,1803.9,4.10851]
[1743353265616,1.10894,1804.1,1803.9,2.9995]
[1743353265817,1.10894,1804.1,1803.9,4.10851]
[1743353266223,1.10894,1804.1,1803.9,2.9995]
[1743353266426,1.10895,1804.0,1803.9,2.9995]
[1743353266723,1.10895,1804.0,1803.9,4.10851]
[1743353266921,1.10895,1804.0,1803.9,2.9995]
[1743353270325,1.10901,1803.9,1803.8,5.8332]
[1743353270515,1.10901,1803.9,1803.6,3.2078]
[1743353270516,1.10911,1803.8,1803.6,1.10919]
[1743353270717,1.10914,1803.7,1803.6,2.9875]
[1743353271119,2.9989,1803.7,1803.6,4.0967]
[1743353279236,1.1092,1803.6,1803.5,2.8448]
[1743353279434,1.1092,1803.6,1803.4,6.95032]
[1743353279635,3.0015,1803.5,1803.4,6.95032]
[1743353280432,3.0015,1803.5,1803.4,2.847]
[1743353280630,4.11076,1803.5,1803.4,2.847]
[1743353280833,4.11076,1803.5,1803.3,12.20316]
[1743353281036,2.8678,1803.4,1803.3,15.09026]
[1743353281237,2.8678,1803.4,1803.3,13.9809]
[1743353281426,5.9855,1803.4,1803.3,10.7731]
[1743353281836,5.9855,1803.4,1803.3,11.88248]
[1743353282132,2.9317,1803.7,1803.3,10.7731]
[1743353282437,2.9317,1803.7,1803.4,2.8871]
[1743353282438,2.8678,1803.7,1803.4,2.8871]
[1743353282639,2.8678,1803.7,1803.5,1.10921]
[1743353282838,2.8678,1803.7,1803.6,5.7163]
[1743353283231,3.97694,1803.7,1803.6,5.7163]
[1743353283532,2.8678,1803.7,1803.3,16.01016]
[1743353283735,4.16022,1803.6,1803.4,3.9453]
[1743353283935,1.10922,1803.6,1803.5,2.836]
[1743353284237,1.10917,1803.7,1803.5,3.94522]
[1743353284438,4.31691,1803.8,1803.6,1.1092]
[1743353284633,1.10911,1803.8,1803.7,2.836]
[1743353285329,21.52195027,1803.9,1803.8,1.10908]
[1743353285532,21.52195027,1803.9,1803.8,4.19458]
[1743353285737,21.52195027,1803.9,1803.8,7.03058]
[1743353286231,21.52195027,1803.9,1803.8,5.9215]
[1743353286432,21.52195027,1803.9,1803.8,7.03058]
[1743353286433,0.00831025,1803.9,1803.8,7.03058]
[1743353287435,3.0877,1804.3,1804.2,1.10883]
[1743353287635,24.72144002,1804.4,1803.9,13.35919]
[1743353287835,21.51364002,1804.4,1804.0,3.0175]
[1743353288140,1.10881,1804.3,1804.0,10.37314251]
[1743353288439,1.10881,1804.3,1804.1,5.8363]
[1743353288629,4.15882025,1804.3,1804.2,3.0175]
[1743353288836,3.05001025,1804.3,1804.2,4.12633]
[1743353290436,3.05001025,1804.3,1804.2,3.0175]
[1743353291537,3.05001025,1804.3,1804.2,4.12633]
[1743353291944,0.00831025,1804.3,1804.2,4.12633]
[1743353292138,0.00831025,1804.3,1804.2,7.21243]
[1743353292338,0.00831025,1804.3,1804.2,6.1036]
[1743353292738,1.11708025,1804.3,1804.2,3.0175]
[1743353292936,0.00831025,1804.3,1804.0,0.00831025]
[1743353293242,7.36537,1804.2,1804.0,0.00831025]
[1743353293441,4.00429,1804.1,1804.0,0.00831025]
[1743353296436,6.2565,1804.2,1804.1,1.10889]
[1743353296632,6.2166,1804.2,1804.1,3.94439]
[1743353299043,3.0088,1804.2,1804.1,3.94439]
[1743353299449,4.11763,1804.2,1804.1,2.8355]
[1743353299747,3.0088,1804.2,1804.0,0.00831025]
[1743353300049,2.821,1804.1,1804.0,1.11720025]
[1743353300851,3.92989,1804.1,1804.0,0.00831025]
[1743353301652,7.13769,1804.1,1804.0,0.00831025]
[1743353304244,3.92989,1804.1,1804.0,0.00831025]
[1743353304445,2.821,1804.1,1804.0,3.97456025]
[1743353305746,7.15339025,1804.3,1804.1,1.10884]
[1743353305946,10.04329025,1804.3,1804.2,3.0623]
[1743353306246,7.15339025,1804.3,1804.2,3.0623]
[1743353309157,4.32489025,1804.3,1804.2,3.0623]
[1743353309956,7.40649025,1804.3,1804.2,3.0623]
[1743353313058,1.10883,1804.2,1804.1,6.0369]
[1743353313258,1.10883,1804.2,1804.1,9.1469]
[1743353313554,1.10883,1804.2,1804.1,7.16539]
[1743353313757,1.10883,1804.2,1804.1,6.0565]
[1743353314057,3.21611025,1804.3,1804.0,0.00831025]
[1743353314262,1.10889,1804.1,1804.0,0.00831025]
[1743353314462,4.31669,1804.1,1804.0,0.00831025]
[1743353314764,7.37629,1804.1,1804.0,0.00831025]
[1743353315062,4.16849,1804.1,1804.0,0.00831025]
[1743353315755,4.16849,1804.1,1804.0,1.11726025]
[1743353315956,4.16849,1804.1,1804.0,2.90001025]
[1743353316459,3.21611025,1804.3,1804.0,2.90001025]
[1743353316662,1.11710025,1804.3,1804.1,7.07626]
[1743353316856,1.11710025,1804.3,1804.2,3.0169]
[1743353319159,1.11710025,1804.3,1804.2,4.12573]
[1743353319866,0.00831025,1804.3,1804.2,4.12573]